bitfinex-derivatives/quotes_BTCF0:USTF0_20250828
["timestamp","ask_amount","ask_price","bid_price","bid_amount"]
[1756373772376,0.14261,112980.0,112970.0,0.91298214]
[1756373772574,0.50341,112980.0,112970.0,0.91298214]
[1756373774080,0.50341,112980.0,112970.0,0.64498214]
[1756373774276,0.51239071,112980.0,112970.0,0.64498214]
[1756373774479,0.51239071,112980.0,112970.0,1.00498214]
[1756373774678,0.51239071,112980.0,112970.0,0.63498214]
[1756373774879,0.51239071,112980.0,112970.0,0.64498214]
[1756373778681,0.50341,112980.0,112970.0,0.64498214]
[1756373778876,0.50341,112980.0,112970.0,0.94498214]
[1756373779181,0.001,112980.0,112970.0,1.61378508]
[1756373779382,0.001,112980.0,112970.0,1.97458508]
[1756373779775,0.02866,112980.0,112970.0,1.55578214]
[1756373780077,0.02866,112980.0,112970.0,1.82378214]
[1756373782086,0.001,112980.0,112970.0,2.24258508]
[1756373782583,0.001,112980.0,112970.0,1.82378214]
[1756373782777,0.001,112980.0,112970.0,2.24258508]
[1756373787485,0.02866,112980.0,112970.0,2.24258508]
[1756373790189,0.02866,112980.0,112970.0,1.82378214]
[1756373790379,0.02866,112980.0,112970.0,1.55578214]
[1756373790574,0.087,112980.0,112970.0,1.55578214]
[1756373791783,0.1413271,112980.0,112970.0,0.99578214]
[1756373792083,0.14261,112980.0,112970.0,1.42919214]
[1756373792289,0.5919171,112980.0,112970.0,1.42919214]
[1756373792480,0.50341,112980.0,112970.0,1.42919214]
[1756373793189,0.50341,112980.0,112970.0,1.44154214]
[1756373793391,0.04402,112980.0,112970.0,2.23034508]
[1756373793592,0.02866,112980.0,112970.0,2.59114508]
[1756373793992,0.02866,112980.0,112970.0,2.17234214]
[1756373795094,0.0874,112980.0,112970.0,1.81154214]
[1756373795785,0.0874,112980.0,112970.0,2.17234214]
[1756373796093,0.02866,112980.0,112970.0,2.17234214]
[1756373797888,0.02866,112980.0,112970.0,2.59114508]
[1756373798890,0.02887,113000.0,112970.0,2.84114508]
[1756373799086,0.02887,113000.0,112990.0,0.94819224]
[1756373799285,0.0439,113010.0,113000.0,0.1847015]
[1756373799590,0.0439,113010.0,113000.0,0.94820444]
[1756373800088,0.0439,113010.0,113000.0,1.21620444]
[1756373800496,0.14179,113010.0,113000.0,0.89620444]
[1756373801297,0.14179,113010.0,113000.0,0.84969114]
[1756373809799,0.14179,113010.0,113000.0,0.58169114]
[1756373815604,0.14179,113010.0,113000.0,0.84969114]
[1756373817305,0.11728,113010.0,113000.0,0.84969114]
[1756373817503,0.08305,113010.0,113000.0,0.84969114]
[1756373818005,0.11728,113010.0,113000.0,0.84969114]
[1756373820408,0.14179,113010.0,113000.0,0.4774015]
[1756373820707,0.02887,113010.0,113000.0,1.21969114]
[1756373823298,0.02887,113010.0,113000.0,1.26619646]
[1756373823697,0.0439,113010.0,113000.0,1.26619646]
[1756373823899,0.06496,113010.0,113000.0,1.26619646]
[1756373824104,0.0439,113010.0,113000.0,1.26619646]
[1756373824406,0.02887,113010.0,113000.0,1.26619646]
[1756373825309,0.02887,113010.0,113000.0,0.89619646]
[1756373825509,0.02887,113010.0,113000.0,1.24619646]
[1756373826498,0.02887,113010.0,113000.0,0.89619646]
[1756373826706,0.0439,113010.0,113000.0,1.20619646]
[1756373827411,0.02887,113010.0,113000.0,1.20619646]
[1756373829213,2.48071834,113020.0,113010.0,0.1446836]
[1756373829412,2.1067469,113020.0,113010.0,0.62649856]
[1756373829612,2.57855186,113020.0,113010.0,0.62649856]
[1756373830113,2.1597569,113020.0,113010.0,0.62649856]
[1756373830314,2.1607569,113020.0,113010.0,0.62649856]
[1756373830820,2.1627569,113020.0,113010.0,0.62749856]
[1756373831111,1.3575569,113020.0,113010.0,0.62749856]
[1756373833416,1.3575569,113020.0,113010.0,0.89549856]
[1756373834209,2.1623969,113020.0,113010.0,0.89549856]
[1756373838618,1.31460352,113020.0,113010.0,1.31429352]
[1756373838918,0.94968,113020.0,113010.0,2.00509352]
[1756373839215,2.12968,113020.0,113010.0,2.00509352]
[1756373839414,1.26634,113020.0,113010.0,3.05977352]
[1756373839814,1.26634,113020.0,113010.0,2.72977352]
[1756373840019,0.06748,113020.0,113010.0,3.06977352]
[1756373840913,0.04641,113020.0,113010.0,3.06977352]
[1756373841122,0.003,113020.0,113010.0,3.06977352]
[1756373841321,0.003,113020.0,113010.0,2.2321836]
[1756373841614,0.003,113020.0,113010.0,3.06977352]
[1756373841921,0.03122,113020.0,113010.0,2.2321836]
[1756373842119,0.03122,113020.0,113010.0,3.06977352]
[1756373846724,0.003,113020.0,113010.0,3.06977352]
[1756373847522,0.03122,113020.0,113010.0,3.06977352]
[1756373851722,0.09863,113030.0,113020.0,0.1446758]
[1756373852029,0.09863,113030.0,113020.0,1.66463777]
[1756373852427,0.09863,113030.0,113020.0,1.59529076]
[1756373853129,0.10263,113030.0,113020.0,1.59629076]
[1756373853428,0.06848,113030.0,113020.0,1.59629076]
[1756373853624,0.06848,113030.0,113020.0,1.59529076]
[1756373853829,0.06548,113030.0,113020.0,1.59529076]
[1756373854623,0.10163,113030.0,113020.0,1.59529076]
[1756373855425,0.09963,113030.0,113020.0,1.60425395]
[1756373855829,0.02922,113030.0,113020.0,1.60425395]
[1756373856726,0.02922,113030.0,113020.0,1.27529076]
[1756373856930,0.08601,113030.0,113020.0,1.27529076]
[1756373857431,0.08601,113030.0,113020.0,1.3470869]
[1756373859437,0.06193,113030.0,113020.0,1.3470869]
[1756373860025,0.08601,113030.0,113020.0,1.3470869]
[1756373864139,0.14386,113030.0,113020.0,0.92829194]
[1756373864341,0.14386,113030.0,113020.0,1.3470869]
[1756373864831,0.14386,113030.0,113020.0,0.55514194]
[1756373865032,0.56265496,113030.0,113020.0,1.62298076]
[1756373865230,0.56265496,113030.0,113020.0,1.67470076]
[1756373865938,0.56265496,113030.0,113020.0,0.4862758]
[1756373866239,0.56265496,113030.0,113020.0,1.71015076]
[1756373868940,0.56265496,113030.0,113020.0,0.90507076]
[1756373871742,0.58627039,113030.0,113020.0,0.90507076]
[1756373872942,1.36753496,113030.0,113020.0,0.90507076]
[1756373873839,1.36753496,113030.0,113020.0,0.63707076]
[1756373876547,1.36753496,113030.0,113020.0,0.2182758]
[1756373876745,1.36753496,113030.0,113020.0,0.63707076]
[1756373877348,1.36753496,113030.0,113020.0,0.2182758]
[1756373877548,1.36753496,113030.0,113020.0,0.63707076]
[1756373880149,1.36753496,113030.0,113020.0,0.2182758]
[1756373880342,1.0608211,113030.0,113020.0,0.63707076]
[1756373880646,1.47961606,113030.0,113020.0,0.63707076]
[1756373882248,1.47961606,113030.0,113020.0,0.2182758]
[1756373882444,1.47961606,113030.0,113020.0,0.61732076]
[1756373882638,2.45388156,113030.0,113010.0,0.3804074]
[1756373882844,0.92283496,113020.0,113010.0,0.4161074]
[1756373883045,0.94644806,113020.0,113010.0,0.3921774]
[1756373883248,1.27644806,113020.0,113010.0,0.3921774]
[1756373883443,1.27644806,113020.0,113010.0,0.3764774]
[1756373883649,1.36492386,113020.0,113010.0,0.3764774]
[1756373883847,1.36492386,113020.0,113010.0,0.1084774]
[1756373884048,1.36492386,113020.0,113010.0,0.1094774]
[1756373884249,1.36492386,113020.0,113010.0,0.1549674]
[1756373884552,1.03492386,113020.0,113010.0,0.2008974]
[1756373884744,1.03492386,113020.0,113010.0,0.1998974]
[1756373884944,1.03492386,113020.0,113010.0,0.61769236]
[1756373886253,1.01131076,113020.0,113010.0,0.61769236]
[1756373886454,1.01131076,113020.0,113010.0,0.1251774]
[1756373887756,1.01131076,113020.0,113010.0,0.021]
[1756373887957,1.01131076,113020.0,113010.0,0.1094837]
[1756373889452,2.03366926,113020.0,113010.0,0.021]
[1756373889750,1.6148743,113020.0,113010.0,0.021]
[1756373889957,0.2312137,113010.0,113000.0,0.3564856]
[1756373890157,2.13520866,113010.0,113000.0,0.4764856]
[1756373891666,2.55400362,113010.0,113000.0,0.4764856]
[1756373891957,2.13520866,113010.0,113000.0,0.4774856]
[1756373892158,2.55400362,113010.0,113000.0,0.4774856]
[1756373892361,2.55400362,113010.0,113000.0,0.389]
[1756373895061,2.13520866,113010.0,113000.0,0.389]
[1756373895764,2.55400362,113010.0,113000.0,0.389]
[1756373896255,2.577559,113010.0,113000.0,0.389]
[1756373897962,2.577559,113010.0,113000.0,0.269]
[1756373898158,2.257559,113010.0,113000.0,0.269]
[1756373898364,2.607559,113010.0,113000.0,0.269]
[1756373899262,2.607559,113010.0,113000.0,0.001]
[1756373902661,2.607559,113010.0,112990.0,0.32625]
[1756373902662,0.2312216,113000.0,112990.0,0.268]
[1756373902858,0.2312294,112990.0,112980.0,0.87236186]
[1756373903058,1.83837974,112990.0,112980.0,0.90236186]
[1756373903564,1.83837974,112990.0,112980.0,0.92163186]
[1756373903753,1.84745634,112990.0,112980.0,0.92163186]
[1756373904956,1.84845634,112990.0,112980.0,0.92463186]
[1756373905762,1.84845634,112990.0,112980.0,0.92663186]
[1756373906266,1.82490096,112990.0,112980.0,0.92663186]
[1756373906661,1.406106,112990.0,112980.0,0.92663186]
[1756373906864,1.82490096,112990.0,112980.0,0.92663186]
[1756373908669,1.46410096,112990.0,112980.0,0.92663186]
[1756373909170,0.66010096,112990.0,112980.0,0.92663186]
[1756373909365,1.82510096,112990.0,112980.0,0.92663186]
[1756373909870,1.46430096,112990.0,112980.0,0.92663186]
[1756373910367,1.045506,112990.0,112980.0,0.92663186]
[1756373910565,1.0367894,112990.0,112980.0,1.66777682]
[1756373910766,0.03084,112990.0,112980.0,1.92777682]
[1756373910968,0.001,112990.0,112980.0,3.09325682]
[1756373912077,0.03084,112990.0,112980.0,3.09325682]
[1756373913276,0.03084,112990.0,112980.0,2.62802245]
[1756373915170,0.03084,112990.0,112980.0,2.37802245]
[1756373915369,0.08718,112990.0,112980.0,2.37802245]
[1756373917776,0.03084,112990.0,112980.0,2.37802245]
[1756373925084,0.001,112990.0,112980.0,2.34640245]
[1756373925382,0.03091,112990.0,112980.0,2.35875245]
[1756373928081,0.001,112990.0,112980.0,2.35875245]
[1756373930086,0.03091,112990.0,112980.0,2.35875245]
[1756373931883,0.001,112990.0,112980.0,2.35875245]
[1756373932587,0.03091,112990.0,112980.0,2.35875245]
[1756373933883,0.001,112990.0,112980.0,2.35875245]
[1756373934189,0.39071,113010.0,113000.0,0.10833]
[1756373934385,0.02991,113010.0,113000.0,1.63379555]
[1756373934581,0.02991,113010.0,113000.0,1.72228705]
[1756373934785,0.02991,113010.0,113000.0,1.74228705]
[1756373934984,0.02991,113010.0,113000.0,1.39228705]
[1756373935286,0.02991,113010.0,113000.0,1.43869823]
[1756373935490,0.02991,113010.0,113000.0,2.53826496]
[1756373935883,0.03091,113010.0,113000.0,2.23826496]
[1756373936088,0.03091,113010.0,113000.0,2.58826496]
[1756373936287,0.03091,113010.0,113000.0,2.57826496]
[1756373936492,0.03091,113010.0,113000.0,2.18831467]
[1756373936682,0.03091,113010.0,113000.0,2.19031467]
[1756373936879,0.02991,113010.0,113000.0,2.19031467]
[1756373937079,0.03091,113010.0,113000.0,2.19331467]
[1756373937285,0.03091,113010.0,113000.0,2.1467817]
[1756373937478,0.03091,113010.0,113000.0,1.7667817]
[1756373937684,0.03091,113010.0,113000.0,2.1367817]
[1756373939084,0.03091,113010.0,113000.0,1.75796526]
[1756373939284,0.11080961,113010.0,113000.0,1.75796526]
[1756373940191,0.11080961,113010.0,113000.0,2.02596526]
[1756373940492,0.08611961,113010.0,113000.0,2.02596526]
[1756373941788,0.11080961,113010.0,113000.0,2.02596526]
[1756373947392,0.05446961,113010.0,113000.0,2.02596526]
[1756373949190,0.0874,113010.0,113000.0,2.02596526]
[1756373952896,0.06269,113010.0,113000.0,2.02596526]
[1756373953396,0.03091,113010.0,113000.0,2.02596526]
[1756373959404,0.03091,113010.0,113000.0,2.0725382]
[1756373967321,0.03091,113010.0,113000.0,1.7117382]
[1756373972025,0.0874,113010.0,113000.0,1.7117382]
[1756373972322,0.0874,113010.0,113000.0,1.2929315]
[1756373972515,0.0874,113010.0,113000.0,1.7117382]
[1756373976027,0.03091,113010.0,113000.0,1.7117382]
[1756373977130,0.06394,113010.0,113000.0,1.7117382]
[1756373978431,0.03091,113010.0,113000.0,1.7117382]
[1756373981332,0.9784504,113010.0,113000.0,0.9066982]
[1756373981531,1.0114804,113010.0,113000.0,1.6983082]
[1756373981831,1.0114804,113010.0,113000.0,1.7106582]
[1756373983328,1.0114804,113010.0,113000.0,0.9066982]
[1756373983522,1.0114804,113010.0,113000.0,0.8943482]
[1756373983727,1.0114804,113010.0,113000.0,0.4755415]
[1756373983928,1.03510678,113010.0,113000.0,0.4755415]
[1756373984130,1.03510678,113010.0,113000.0,0.8943482]
[1756373984334,1.0114804,113010.0,113000.0,0.8943482]
[1756373985333,1.8154404,113010.0,113000.0,0.8943482]
[1756373985633,2.0654404,113010.0,113000.0,0.8943482]
[1756373986234,2.08906264,113010.0,113000.0,0.8943482]
[1756373987133,2.08906264,113010.0,113000.0,0.9066982]
[1756373990238,2.08902264,113010.0,113000.0,0.8943482]
[1756373990440,1.67021594,113010.0,113000.0,0.8943482]
[1756373990643,2.08902264,113010.0,113000.0,0.8943482]
[1756373991638,1.67021594,113010.0,113000.0,0.8943482]
[1756373991837,2.08902264,113010.0,113000.0,0.8943482]
[1756373993142,1.83902264,113010.0,113000.0,0.8943482]
[1756373993836,1.03510264,113010.0,113000.0,0.8943482]
[1756373994039,1.83902264,113010.0,113000.0,0.9066982]
[1756373994642,1.83902264,113010.0,113000.0,0.8943482]
[1756373995036,1.42021594,113010.0,113000.0,0.8943482]
[1756373995541,1.33173224,113010.0,113000.0,0.8943482]
[1756373996242,1.30811,113010.0,113000.0,0.9066982]
[1756373996744,1.3965936,113010.0,113000.0,0.9066982]
[1756373996937,1.3965936,113010.0,113000.0,0.8943482]
[1756373998044,1.42021062,113010.0,113000.0,0.8943482]
[1756373998543,1.83901732,113010.0,113000.0,0.8943482]
[1756373999044,1.33172702,113010.0,113000.0,0.8943482]
[1756374000538,1.42021072,113010.0,113000.0,0.8943482]
[1756374000838,1.83901742,113010.0,113000.0,0.8504582]
[1756374001545,1.75053372,113010.0,113000.0,0.8932382]
[1756374003942,1.33172702,113010.0,113000.0,0.8932382]
[1756374006852,1.30811,113010.0,113000.0,0.8932382]
[1756374009452,0.50419,113010.0,113000.0,0.8932382]
[1756374009654,1.30811,113010.0,113000.0,0.8932382]
[1756374010758,0.50419,113010.0,113000.0,0.8932382]
[1756374011062,1.30811,113010.0,113000.0,0.8932382]
[1756374012264,1.33176123,113010.0,113000.0,0.8932382]
[1756374013056,1.30811,113010.0,113000.0,0.8932382]
[1756374013251,1.33176596,113010.0,113000.0,0.8932382]
[1756374014264,1.30811,113010.0,113000.0,0.8932382]
[1756374015158,1.30811,113010.0,113000.0,0.4744315]
[1756374015365,1.30811,113010.0,113000.0,0.8932382]
[1756374016067,0.94731,113010.0,113000.0,0.8932382]
[1756374016264,0.11036,113010.0,113000.0,0.9055882]
[1756374016468,0.08681,113010.0,113000.0,1.9543949]
[1756374016665,0.04646,113010.0,113000.0,1.9543949]
[1756374017167,0.04646,113010.0,113000.0,1.5355882]
[1756374017768,0.04646,113010.0,113000.0,2.3151949]
[1756374018170,0.04646,113010.0,113000.0,2.3241131]
[1756374018561,0.04646,113010.0,113000.0,1.1064997]
[1756374018766,0.04646,113010.0,113000.0,2.3241131]
[1756374020372,0.03091,113010.0,113000.0,2.3241131]
[1756374025078,0.03091,113010.0,113000.0,2.2941131]
[1756374026778,0.03091,113010.0,113000.0,2.2851949]
[1756374027378,0.03091,113010.0,113000.0,2.2942754]
[1756374028179,0.03091,113010.0,113000.0,2.2851949]
[1756374028678,0.08795,113010.0,113000.0,1.8663882]
[1756374035979,0.08795,113010.0,113000.0,1.5163882]
[1756374036287,0.06395,113010.0,113000.0,1.8263882]
[1756374037287,0.08757,113010.0,113000.0,1.8863882]
[1756374037584,0.08757,113010.0,113000.0,2.6677982]
[1756374037889,0.08757,113010.0,113000.0,2.6377982]
[1756374038081,0.08757,113010.0,113000.0,2.3201482]
[1756374041184,0.08757,113010.0,113000.0,2.6901482]
[1756374043285,0.06471,113010.0,113000.0,2.6901482]
[1756374043489,0.03091,113010.0,113000.0,2.6901482]
[1756374043988,0.06471,113010.0,113000.0,2.6901482]
[1756374045384,0.03091,113010.0,113000.0,2.6901482]
[1756374047787,0.03091,113010.0,113000.0,2.3293482]
[1756374047993,0.03091,113010.0,113000.0,2.6901482]
[1756374049097,0.06471,113010.0,113000.0,2.6801482]
[1756374049395,0.03091,113010.0,113000.0,2.6801482]
[1756374051898,0.03091,113010.0,113000.0,2.3193482]
[1756374052098,0.03091,113010.0,113000.0,2.6801482]
[1756374052995,0.03091,113010.0,113000.0,2.3193482]
[1756374053196,0.03091,113010.0,113000.0,2.4301482]
[1756374057793,0.03091,113010.0,113000.0,1.6513415]
[1756374057992,0.9789704,113010.0,113000.0,0.9055882]
[1756374058195,0.61759969,113010.0,113000.0,1.7093082]
[1756374058503,1.28640639,113010.0,113000.0,1.7093082]
[1756374058703,1.28640194,113010.0,113000.0,0.8932382]
[1756374059295,1.2627704,113010.0,113000.0,0.0934915]
[1756374059603,0.2314594,112990.0,112980.0,0.1820871]
[1756374059807,1.83840423,112990.0,112980.0,0.6190738]
[1756374061090,1.83940423,112990.0,112980.0,0.6250738]
[1756374062000,1.83940423,112990.0,112980.0,0.6280738]
[1756374062199,1.8147861,112990.0,112980.0,0.6220738]
[1756374062603,1.8157861,112990.0,112980.0,0.6250738]
[1756374062802,1.82463168,112990.0,112980.0,0.6220738]
[1756374063105,1.82463168,112990.0,112980.0,0.6230738]
[1756374063894,1.89634058,112990.0,112980.0,0.6230738]
[1756374067600,1.89642058,112990.0,112980.0,0.6230738]
[1756374068509,1.47761388,112990.0,112980.0,0.6230738]
[1756374068708,1.89642058,112990.0,112980.0,0.6230738]
[1756374071905,1.89642058,112990.0,112980.0,0.1814271]
[1756374072209,1.89642058,112990.0,112980.0,0.5206767]
[1756374072409,1.47761388,112990.0,112980.0,0.5206767]
[1756374072607,1.89642058,112990.0,112980.0,0.5206767]
[1756374073109,1.89642058,112990.0,112980.0,0.07715]
[1756374073410,1.89663058,112990.0,112980.0,0.5206767]
[1756374075407,1.89663058,112990.0,112980.0,0.6091839]
[1756374076808,1.84122058,112990.0,112980.0,0.1330972]
[1756374077014,1.89663058,112990.0,112980.0,0.6091839]
[1756374077215,1.92009877,112990.0,112980.0,0.6091839]
[1756374081113,1.94009877,112990.0,112980.0,0.6091839]
[1756374081514,1.52129207,112990.0,112980.0,0.1903772]
[1756374081718,1.94009877,112990.0,112980.0,0.4959567]
[1756374083321,1.94009877,112990.0,112980.0,0.5844638]
[1756374083522,1.94009877,112990.0,112980.0,0.1656571]
[1756374083820,1.94009877,112990.0,112980.0,0.5844638]
[1756374085617,1.94009877,112990.0,112980.0,0.1656571]
[1756374085818,1.94009877,112990.0,112980.0,0.5844638]
[1756374090922,1.52129207,112990.0,112980.0,0.5844638]
[1756374091122,1.94009877,112990.0,112980.0,0.6091838]
[1756374091613,1.13629877,112990.0,112980.0,0.6288138]
[1756374091817,1.94013877,112990.0,112980.0,0.6288138]
[1756374093826,1.13629877,112990.0,112980.0,0.6288138]
[1756374094023,1.94013877,112990.0,112980.0,0.6288138]
[1756374100527,1.94013877,112990.0,112980.0,0.8968138]
[1756374102326,1.94009877,112990.0,112980.0,0.8968138]
[1756374103733,1.94009877,112990.0,112980.0,0.4780071]
[1756374103929,1.94009877,112990.0,112980.0,0.8968138]
[1756374105831,1.94009877,112990.0,112980.0,0.4780071]
[1756374106029,1.94009877,112990.0,112980.0,0.8968138]
[1756374107932,1.13629877,112990.0,112980.0,0.8968138]
[1756374108132,1.94005877,112990.0,112980.0,0.4780071]
[1756374108334,1.94005877,112990.0,112980.0,0.8968138]
[1756374110938,1.57925877,112990.0,112980.0,0.8968138]
[1756374111236,1.94005877,112990.0,112980.0,0.8968138]
[1756374112137,1.13629877,112990.0,112980.0,0.8621538]
[1756374112336,1.94001877,112990.0,112980.0,0.9138538]
[1756374112837,1.94001877,112990.0,112980.0,0.8965038]
[1756374114436,1.94001877,112990.0,112980.0,0.4776971]
[1756374114637,1.94001877,112990.0,112980.0,0.8965038]
[1756374115241,1.13629877,112990.0,112980.0,0.8965038]
[1756374115443,1.94001877,112990.0,112980.0,0.8965038]
[1756374118345,1.13629877,112990.0,112980.0,0.8965038]
[1756374118546,1.93997877,112990.0,112980.0,0.8965038]
[1756374125265,1.85147937,112990.0,112980.0,0.8965038]
[1756374125557,1.49067937,112990.0,112980.0,0.8965038]
[1756374125760,1.57917867,112990.0,112980.0,0.8965038]
[1756374126057,1.52117197,112990.0,112980.0,0.8965038]
[1756374126259,1.93997867,112990.0,112980.0,0.8965038]
[1756374130562,1.52117197,112990.0,112980.0,0.8965038]
[1756374130863,1.52117197,112990.0,112980.0,0.9138538]
[1756374131059,1.93997867,112990.0,112980.0,0.9138538]
[1756374131360,1.93997867,112990.0,112980.0,0.8965038]
[1756374132263,1.52117197,112990.0,112980.0,0.8965038]
[1756374132457,1.93997867,112990.0,112980.0,0.8965038]
[1756374134163,1.52117197,112990.0,112980.0,0.8965038]
[1756374135362,1.16037197,112990.0,112980.0,0.8965038]
[1756374135966,1.16037197,112990.0,112980.0,0.6285038]
[1756374136266,0.35669197,112990.0,112980.0,0.6285038]
[1756374136464,1.16025197,112990.0,112980.0,0.6285038]
[1756374136766,0.15474819,112990.0,112980.0,1.6946605]
[1756374136969,0.15474819,112990.0,112980.0,1.6446605]
[1756374137167,0.18758819,112990.0,112980.0,1.6446605]
[1756374137974,0.18758819,112990.0,112980.0,1.3146605]
[1756374138262,0.18758819,112990.0,112980.0,1.6746605]
[1756374138569,0.16412,112990.0,112980.0,1.3146605]
[1756374138769,0.16412,112990.0,112980.0,1.6646605]
[1756374140668,0.16412,112990.0,112980.0,1.3146605]
[1756374141568,0.16412,112990.0,112980.0,0.4770471]
[1756374141769,0.16412,112990.0,112980.0,1.3146605]
[1756374142069,0.16412,112990.0,112980.0,1.5826605]
[1756374143366,0.06627,112990.0,112980.0,1.5826605]
[1756374143568,0.02821,113000.0,112990.0,0.1432893]
[1756374143772,0.05171509,113000.0,112990.0,2.119366]
[1756374144562,0.02821,113000.0,112990.0,2.119366]
[1756374144967,0.02821,113000.0,112990.0,2.12845911]
[1756374146571,0.02921,113000.0,112990.0,2.12945911]
[1756374146967,0.02921,113000.0,112990.0,2.120366]
[1756374147573,0.02821,113000.0,112990.0,2.119366]
[1756374147770,0.02921,113000.0,112990.0,2.122366]
[1756374147975,0.02921,113000.0,112990.0,2.390366]
[1756374148881,0.02921,113000.0,112990.0,2.391366]
[1756374166291,0.0526348,113000.0,112990.0,2.391366]
[1756374167496,0.0526348,113000.0,112990.0,1.9725593]
[1756374167693,0.02921,113000.0,112990.0,2.391366]
[1756374171294,0.05264505,113000.0,112990.0,2.391366]
[1756374171990,0.52742175,113000.0,112990.0,2.374016]
[1756374172489,0.52742175,113000.0,112990.0,1.209736]
[1756374172695,1.03476325,113000.0,112990.0,0.4018893]
[1756374172994,0.58547175,113000.0,112990.0,0.893626]
[1756374173195,0.58547175,113000.0,112990.0,0.912206]
[1756374173499,0.58547175,113000.0,112990.0,0.929556]
[1756374176498,0.5620367,113000.0,112990.0,0.929556]
[1756374178697,0.5620367,113000.0,112990.0,0.912206]
[1756374179394,0.9228367,113000.0,112990.0,0.912206]
[1756374179595,0.5620367,113000.0,112990.0,0.912206]
[1756374179795,0.5620367,113000.0,112990.0,0.929556]
[1756374180799,0.6505282,113000.0,112990.0,0.912206]
[1756374182704,0.5620367,113000.0,112990.0,0.912206]
[1756374182901,0.5620367,113000.0,112990.0,0.929556]
[1756374183601,0.6505282,113000.0,112990.0,0.929556]
[1756374183802,0.67398887,113000.0,112990.0,0.929556]
[1756374184201,0.67398887,113000.0,112990.0,0.912206]
[1756374185302,0.67398887,113000.0,112990.0,0.929556]
[1756374185707,0.67398887,113000.0,112990.0,0.909556]
[1756374187006,0.67398853,113000.0,112990.0,0.4907493]
[1756374187208,0.67398853,113000.0,112990.0,0.892206]
[1756374187510,0.67398853,113000.0,112990.0,0.860176]
[1756374187803,0.67398853,113000.0,112990.0,0.875556]
[1756374188008,0.67398853,113000.0,112990.0,0.893726]
[1756374188311,1.03478853,113000.0,112990.0,0.893726]
[1756374188505,1.03478853,113000.0,112990.0,0.841596]
[1756374188704,1.03478853,113000.0,112990.0,0.875556]
[1756374188908,1.03478853,113000.0,112990.0,0.893726]
[1756374189306,1.03478853,113000.0,112990.0,0.911076]
[1756374189806,1.03478853,113000.0,112990.0,0.893726]
[1756374190013,1.05478853,113000.0,112990.0,0.893726]
[1756374191603,1.60478853,113000.0,112990.0,0.272]
[1756374192811,1.60476083,113000.0,112990.0,0.272]
[1756374194409,2.40800083,113000.0,112990.0,0.3604993]
[1756374195009,2.40800083,113000.0,112990.0,0.3760693]
[1756374195309,2.40800083,113000.0,112990.0,0.1080693]
[1756374196007,1.60476083,113000.0,112990.0,0.1420293]
[1756374196207,2.40800083,113000.0,112990.0,0.1637293]
[1756374197805,2.40800083,113000.0,112990.0,0.07523]
[1756374198007,2.40800083,113000.0,112990.0,0.004]
[1756374201210,2.40700083,113000.0,112990.0,0.001]
[1756374201411,2.41100083,113000.0,112990.0,0.002]
[1756374202412,2.41400083,113000.0,112990.0,0.001]
[1756374207722,1.99519413,113000.0,112990.0,0.001]
[1756374208022,2.41400083,113000.0,112990.0,0.01657]
[1756374208222,2.41400083,113000.0,112990.0,0.001]
[1756374208423,2.41400083,113000.0,112990.0,0.01657]
[1756374209230,2.41400083,113000.0,112990.0,0.001]
[1756374210625,2.41400083,113000.0,112990.0,0.09705]
[1756374211123,2.41400083,113000.0,112990.0,0.07223]
[1756374211324,2.41400083,113000.0,112990.0,0.001]
[1756374214129,2.56100083,113000.0,112990.0,0.001]
[1756374214328,2.41400083,113000.0,112990.0,0.001]
[1756374232945,1.61076083,113000.0,112990.0,0.001]
[1756374233146,2.16392083,113000.0,112990.0,0.001]
[1756374238953,1.74511413,113000.0,112990.0,0.001]
[1756374239154,2.16392083,113000.0,112980.0,0.268]
[1756374239352,0.50357,112990.0,112980.0,0.17779]
[1756374239654,0.86700263,112990.0,112980.0,0.17779]
[1756374239855,0.86700263,112990.0,112980.0,0.23346]
[1756374240152,1.28580933,112990.0,112980.0,0.27319]
[1756374240351,1.28580933,112990.0,112980.0,0.2499]
[1756374240555,1.28580933,112990.0,112980.0,0.2509]
[1756374240942,1.28580933,112990.0,112980.0,0.07311]
[1756374241655,1.28580933,112990.0,112980.0,0.0964]
[1756374242359,1.28780933,112990.0,112980.0,0.07311]
[1756374242649,1.70661603,112990.0,112960.0,0.5073254]
[1756374242853,0.5063367,112970.0,112960.0,0.6814054]
[1756374243355,0.5063367,112970.0,112960.0,0.6987554]
[1756374243854,0.08753,112970.0,112960.0,0.6987554]
[1756374244051,0.5063367,112970.0,112960.0,0.6997554]
[1756374244356,0.5063367,112970.0,112960.0,0.6824054]
[1756374244556,0.08853,112970.0,112960.0,0.6997554]
[1756374244757,0.08853,112970.0,112960.0,0.7007554]
[1756374245657,0.08853,112970.0,112960.0,0.6997554]
[1756374245856,0.08853,112970.0,112960.0,0.7007554]
[1756374247962,0.90145,112970.0,112960.0,0.7007554]
[1756374248164,0.08853,112970.0,112960.0,0.7007554]
[1756374248357,0.90141,112970.0,112960.0,0.7007554]
[1756374248762,0.08853,112970.0,112960.0,0.8785454]
[1756374249066,0.87704,112970.0,112960.0,1.0685454]
[1756374249366,0.87704,112970.0,112960.0,1.4085454]
[1756374249766,2.05704,112970.0,112960.0,1.4085454]
[1756374250564,2.08167,112970.0,112960.0,1.4085454]
[1756374251162,2.08167,112970.0,112960.0,1.1085454]
[1756374252165,2.05712,112970.0,112960.0,1.1085454]
[1756374252758,2.08175,112970.0,112960.0,1.1085454]
[1756374253960,1.26883,112970.0,112960.0,1.1085454]
[1756374254363,0.02935,112970.0,112960.0,1.1885454]
[1756374254667,0.02935,112970.0,112960.0,1.0107554]
[1756374255368,0.02935,112970.0,112960.0,0.6807554]
[1756374255570,0.06488,112970.0,112960.0,0.9807554]
[1756374255965,0.06488,112970.0,112960.0,0.9607554]
[1756374256165,0.08951,112970.0,112960.0,0.9607554]
[1756374258872,0.08951,112970.0,112960.0,1.0107554]
[1756374260070,0.08951,112970.0,112960.0,0.6807554]
[1756374260270,0.08951,112970.0,112960.0,0.9507554]
[1756374260472,0.08951,112970.0,112960.0,1.1285454]
[1756374261172,0.08951,112970.0,112960.0,0.8485454]
[1756374261377,0.08951,112970.0,112960.0,0.8185454]
[1756374261582,0.08951,112970.0,112960.0,1.1485454]
[1756374265883,0.08951,112970.0,112960.0,0.8485454]
[1756374270686,0.06488,112970.0,112960.0,0.8485454]
[1756374273890,0.06488,112970.0,112960.0,1.1985454]
[1756374274691,0.06488,112970.0,112960.0,0.8485454]
[1756374275492,0.06488,112970.0,112960.0,1.1385454]
[1756374277791,0.04556,112970.0,112960.0,1.1385454]